bitfinex/quotes_BTCUSD_20251116
["timestamp","ask_amount","ask_price","bid_price","bid_amount"]
[1763315598171,0.001,94418.0,94400.0,0.00862798]
[1763315598372,0.02973831,94417.0,94400.0,0.00862798]
[1763315598606,0.02973831,94416.0,94400.0,0.00862798]
[1763315598756,0.02973831,94415.0,94399.0,0.00045109]
[1763315598959,0.02973831,94414.0,94399.0,0.00045109]
[1763315599158,0.02973831,94413.0,94399.0,0.00045109]
[1763315599366,0.02973831,94412.0,94399.0,0.00045109]
[1763315599708,0.02973831,94411.0,94400.0,0.08535]
[1763315599914,0.02973831,94410.0,94401.0,0.00858011]
[1763315600183,0.02973831,94409.0,94401.0,0.00858011]
[1763315600416,0.02973831,94408.0,94402.0,0.04341874]
[1763315600547,0.02973831,94407.0,94402.0,0.04341874]
[1763315600750,0.02973831,94407.0,94401.0,0.09393011]
[1763315600751,0.02974903,94406.0,94404.0,0.04341874]
[1763315600956,0.02974903,94405.0,94404.0,0.04341874]
[1763315601761,0.01983626,94405.0,94404.0,0.04341874]
[1763315602796,0.01983626,94405.0,94404.0,0.04441874]
[1763315603138,0.05849367,94433.0,94404.0,0.04441874]
[1763315603344,0.03922686,94432.0,94404.0,0.04541874]
[1763315603552,0.02974443,94431.0,94404.0,0.04541874]
[1763315603773,0.02974443,94430.0,94404.0,0.04541874]
[1763315603997,0.02974443,94429.0,94404.0,0.12976874]
[1763315604146,0.02974443,94428.0,94404.0,0.12876874]
[1763315604346,0.02974443,94427.0,94406.0,0.04341874]
[1763315604600,0.00948243,94432.0,94406.0,0.04341874]
[1763315604601,0.02974443,94426.0,94406.0,0.04341874]
[1763315604774,0.02974443,94425.0,94408.0,0.04341874]
[1763315604978,0.02974443,94424.0,94408.0,0.04341874]
[1763315605171,0.02974443,94423.0,94410.0,0.04341874]
[1763315605396,0.11470443,94422.0,94410.0,0.04341874]
[1763315605612,0.02974443,94421.0,94411.0,0.04341874]
[1763315605808,0.02974443,94420.0,94411.0,0.04341874]
[1763315606041,0.02974443,94419.0,94412.0,0.01893505]
[1763315606162,0.02973927,94418.0,94411.0,0.08535]
[1763315606362,0.02973927,94417.0,94412.0,0.04341874]
[1763315606561,0.02973927,94416.0,94414.0,0.04341874]
[1763315606769,0.02973927,94415.0,94414.0,0.04341874]
[1763315606967,0.02973927,94415.0,94403.0,0.04241]
[1763315606968,0.01982618,94415.0,94404.0,0.04341874]
[1763315607193,0.01982618,94414.0,94406.0,0.04341874]
[1763315607409,0.01982618,94413.0,94406.0,0.04341874]
[1763315607611,0.01982618,94412.0,94408.0,0.04341874]
[1763315607863,0.01982618,94411.0,94408.0,0.04341874]
[1763315608022,0.08496,94422.0,94421.0,0.102]
[1763315608225,0.08496,94422.0,94421.0,0.18735]
[1763315608226,0.11470222,94422.0,94421.0,0.18735]
[1763315609853,0.05710152,94447.0,94421.0,0.18735]
[1763315610076,0.01662986,94442.0,94422.0,0.018735]
[1763315612316,0.01762986,94442.0,94422.0,0.018735]
[1763315612864,0.01862986,94442.0,94422.0,0.018735]
[1763315614009,0.002,94442.0,94422.0,0.018735]
[1763315615509,0.002,94442.0,94410.0,0.04137]
[1763315615510,0.16984,94441.0,94411.0,0.04341874]
[1763315615921,0.16984,94441.0,94411.0,0.13415874]
[1763315616550,0.16984,94441.0,94413.0,0.04341874]
[1763315616721,0.17084,94441.0,94413.0,0.04341874]
[1763315617025,0.17184,94441.0,94415.0,0.04341874]
[1763315617529,0.17084,94441.0,94415.0,0.04341874]
[1763315617699,0.17084,94441.0,94416.0,0.09074]
[1763315618236,0.16984,94441.0,94416.0,0.09074]
[1763315618649,0.17084,94441.0,94416.0,0.09074]
[1763315618818,0.17084,94441.0,94417.0,0.01755287]
[1763315619601,0.17184,94441.0,94417.0,0.01755287]
[1763315619821,0.17084,94441.0,94417.0,0.01755287]
[1763315620039,0.16984,94441.0,94417.0,0.01755287]
[1763315620251,0.17184,94441.0,94417.0,0.10829287]
[1763315620617,0.17184,94441.0,94418.0,0.01517116]
[1763315621158,0.08692,94441.0,94419.0,0.09074]
[1763315621760,0.02971965,94440.0,94411.0,0.13415874]
[1763315621988,0.02971965,94439.0,94413.0,0.04341874]
[1763315622192,0.08492,94441.0,94413.0,0.04341874]
[1763315622193,0.02971965,94438.0,94413.0,0.04341874]
[1763315622406,0.02971965,94437.0,94410.0,0.04137]
[1763315622540,0.02971965,94436.0,94403.0,0.04241]
[1763315622892,0.02971965,94436.0,94379.0,0.04137]
[1763315622893,0.01058873,94440.0,94394.0,0.04137]
[1763315622894,0.01058985,94430.0,94394.0,0.04137]
[1763315623097,0.02971965,94429.0,94395.0,0.04341874]
[1763315623337,0.02971965,94428.0,94395.0,0.04341874]
[1763315623539,0.02971965,94427.0,94395.0,0.04341874]
[1763315623679,0.02971965,94426.0,94395.0,0.04341874]
[1763315623872,0.02971965,94425.0,94400.0,0.00852398]
[1763315624059,0.02971965,94424.0,94400.0,0.00852398]
[1763315624260,0.08665261,94430.0,94400.0,0.00852398]
[1763315624261,0.02971965,94423.0,94400.0,0.00852398]
[1763315624459,0.02971965,94422.0,94394.0,0.04137]
[1763315624714,0.22238725,94430.0,94390.0,0.04137]
[1763315624715,0.02971965,94421.0,94390.0,0.04137]
[1763315624871,0.24153917,94420.0,94382.0,0.04137]
[1763315625063,0.07606276,94418.0,94382.0,0.04137]
[1763315625265,0.48744976,94417.0,94383.0,0.04341874]
[1763315625466,0.10578241,94416.0,94383.0,0.04341874]
[1763315625692,0.21183299,94414.0,94383.0,0.04341874]
[1763315625884,0.21183083,94415.0,94383.0,0.04341874]
[1763315626094,0.21183083,94415.0,94382.0,0.04137]
[1763315626302,0.09777134,94417.0,94383.0,0.04341874]
[1763315626683,0.001,94416.0,94383.0,0.04341874]
[1763315626883,0.001,94414.0,94383.0,0.04341874]
[1763315628123,0.2118051,94427.0,94383.0,0.04341874]
[1763315628330,0.001,94415.0,94392.0,0.04137]
[1763315628525,0.001,94417.0,94392.0,0.04137]
[1763315628699,0.001,94417.0,94383.0,0.04341874]
[1763315628915,0.001,94414.0,94383.0,0.04341874]
[1763315629570,0.001,94415.0,94383.0,0.04341874]
[1763315629778,0.0569869,94416.0,94383.0,0.04341874]
[1763315629996,0.001,94414.0,94383.0,0.04341874]
[1763315632331,0.002,94414.0,94383.0,0.04341874]
[1763315633834,0.002,94414.0,94383.0,0.13415874]
[1763315634495,0.002,94414.0,94375.0,0.04137]
[1763315634496,0.00789869,94414.0,94375.0,0.04137]
[1763315634733,0.00789869,94414.0,94376.0,0.04341874]
[1763315634734,0.002,94414.0,94376.0,0.04341874]
[1763315635186,0.0589869,94414.0,94376.0,0.04341874]
[1763315635409,0.16992,94413.0,94376.0,0.04341874]
[1763315635593,0.0569869,94407.0,94376.0,0.04341874]
[1763315635930,0.0569869,94409.0,94392.0,0.04137]
[1763315636166,0.0569869,94411.0,94392.0,0.04137]
[1763315636366,0.16992,94413.0,94392.0,0.04137]
[1763315636367,0.08496,94413.0,94392.0,0.04137]
[1763315636568,0.08496,94412.0,94392.0,0.13211]
[1763315636770,0.08496,94412.0,94399.0,0.0137072]
[1763315636929,0.08496,94411.0,94399.0,0.00045109]
[1763315637630,0.029646,94410.0,94399.0,0.00045109]
[1763315637767,0.029646,94409.0,94399.0,0.00045109]
[1763315637979,0.029646,94408.0,94399.0,0.00045109]
[1763315638177,0.11774648,94434.0,94399.0,0.00145109]
[1763315638178,0.029646,94407.0,94399.0,0.00145109]
[1763315638400,0.029646,94406.0,94399.0,0.00145109]
[1763315638608,0.029646,94405.0,94399.0,0.00045109]
[1763315638902,0.029646,94404.0,94399.0,0.00045109]
[1763315639102,0.029646,94403.0,94399.0,0.00045109]
[1763315639333,0.029646,94402.0,94399.0,0.00045109]
[1763315639473,0.029646,94401.0,94399.0,0.00045109]
[1763315639667,0.029646,94400.0,94399.0,0.00045109]
[1763315640878,0.029646,94400.0,94399.0,0.00145109]
[1763315641078,0.019764,94400.0,94399.0,0.04486983]
[1763315641280,0.0569869,94424.0,94400.0,0.04341874]
[1763315641489,0.05253792,94444.0,94400.0,0.04341874]
[1763315641490,0.02965932,94423.0,94400.0,0.04341874]
[1763315641694,0.0569869,94419.0,94399.0,0.00245109]
[1763315642075,0.21184102,94411.0,94399.0,0.00145109]
[1763315642220,0.2,94420.0,94399.0,0.00045109]
[1763315642221,0.0569869,94405.0,94399.0,0.00045109]
[1763315642422,0.21183747,94412.0,94399.0,0.00045109]
[1763315642423,0.02965932,94404.0,94399.0,0.00045109]
[1763315642634,0.43241145,94420.0,94399.0,0.00045109]
[1763315642635,0.05693348,94401.0,94399.0,0.00045109]
[1763315642978,0.05253792,94444.0,94399.0,0.00045109]
[1763315642979,0.02965932,94400.0,94399.0,0.00045109]
[1763315643531,0.02965932,94400.0,94399.0,0.0130862]
[1763315643736,0.02965932,94400.0,94399.0,0.05650494]
[1763315644001,0.01977274,94400.0,94399.0,0.05650494]
[1763315644300,0.05693348,94433.0,94409.0,0.04341874]
[1763315644427,0.02967918,94432.0,94427.0,0.04197]
[1763315644640,0.02967918,94431.0,94427.0,0.04197]
[1763315644839,0.02967918,94430.0,94421.0,0.04197]
[1763315645058,0.02967918,94429.0,94421.0,0.04197]
[1763315645263,0.11463918,94428.0,94421.0,0.04197]
[1763315645459,0.11463918,94428.0,94411.0,0.04197]
[1763315645460,0.04966137,94427.0,94411.0,0.04197]
[1763315645683,0.02967918,94426.0,94411.0,0.04197]
[1763315645895,0.02967918,94425.0,94412.0,0.04341874]
[1763315646093,0.08496,94428.0,94412.0,0.04341874]
[1763315646094,0.02967918,94424.0,94412.0,0.04341874]
[1763315646298,0.02967918,94423.0,94412.0,0.04341874]
[1763315646476,0.02967918,94422.0,94408.0,0.04197]
[1763315646673,0.02967918,94421.0,94408.0,0.04197]
[1763315646878,0.02967918,94420.0,94408.0,0.04197]
[1763315647071,0.02967918,94419.0,94408.0,0.04197]
[1763315647294,0.02967918,94418.0,94408.0,0.04197]
[1763315647525,0.02967918,94417.0,94408.0,0.04197]
[1763315647693,0.02967918,94416.0,94408.0,0.04197]
[1763315647907,0.02967918,94415.0,94412.0,0.001]
[1763315648198,0.02967918,94414.0,94412.0,0.001]
[1763315648399,0.02967918,94413.0,94412.0,0.08393]
[1763315649284,0.02967918,94413.0,94409.0,0.04341874]
[1763315649489,0.02967918,94412.0,94409.0,0.04341874]
[1763315649696,0.01978612,94411.0,94410.0,0.08393]
[1763315649895,0.01978612,94427.0,94410.0,0.12734874]
[1763315650119,0.0099018,94426.0,94419.0,0.05657]
[1763315650323,0.01978612,94425.0,94419.0,0.05657]
[1763315650554,0.0099018,94424.0,94419.0,0.05657]
[1763315650751,0.01978612,94423.0,94419.0,0.05657]
[1763315651058,0.0099018,94422.0,94419.0,0.05657]
[1763315651212,0.01978612,94421.0,94419.0,0.05657]
[1763315651445,0.0099018,94420.0,94419.0,0.05657]
[1763315651645,0.02968792,94420.0,94412.0,0.04341874]
[1763315651873,0.02968792,94419.0,94412.0,0.04341874]
[1763315652071,0.02968792,94418.0,94412.0,0.04341874]
[1763315652272,0.02968792,94417.0,94412.0,0.04341874]
[1763315652475,0.02968792,94416.0,94412.0,0.04341874]
[1763315652671,0.02968792,94415.0,94412.0,0.04341874]
[1763315652875,0.01978612,94432.0,94408.0,0.04197]
[1763315652876,0.02968792,94414.0,94408.0,0.04197]
[1763315653052,0.02968792,94413.0,94374.0,0.1491]
[1763315653248,0.02968792,94412.0,94389.0,0.04197]
[1763315653466,0.05693348,94423.0,94389.0,0.04197]
[1763315653467,0.02968792,94411.0,94389.0,0.04197]
[1763315653693,0.02968792,94410.0,94389.0,0.04197]
[1763315653845,0.02968792,94409.0,94389.0,0.04197]
[1763315654050,0.02968792,94408.0,94389.0,0.04197]
[1763315654247,0.02968792,94407.0,94390.0,0.04341874]
[1763315654555,0.02968792,94406.0,94389.0,0.04197]
[1763315654754,0.02968792,94405.0,94390.0,0.04341874]
[1763315654954,0.02968792,94404.0,94390.0,0.04341874]
[1763315655198,0.02968792,94403.0,94390.0,0.04341874]
[1763315655399,0.02968792,94402.0,94390.0,0.04341874]
[1763315655602,0.02968792,94401.0,94390.0,0.04341874]
[1763315655776,0.02968792,94400.0,94390.0,0.04341874]
[1763315657292,0.02968792,94400.0,94396.0,0.08575]
[1763315657500,0.02968792,94400.0,94399.0,0.04386983]
[1763315658105,0.01978612,94400.0,94399.0,0.04386983]
[1763315658341,0.05693348,94423.0,94408.0,0.09232]
[1763315658542,0.02971971,94422.0,94408.0,0.09232]
[1763315658742,0.02971971,94421.0,94409.0,0.08575]
[1763315658973,0.02971971,94420.0,94409.0,0.08575]
[1763315659341,0.02971971,94419.0,94409.0,0.08575]
[1763315659547,0.02971971,94418.0,94410.0,0.04341874]
[1763315659763,0.02971971,94417.0,94410.0,0.04341874]
[1763315659974,0.02971971,94416.0,94412.0,0.04341874]
[1763315660192,0.02971971,94415.0,94414.0,0.04341874]
[1763315660602,0.02971971,94415.0,94409.0,0.04341874]
[1763315660809,0.02971971,94414.0,94409.0,0.04341874]
[1763315661018,0.02971971,94413.0,94411.0,0.04341874]
[1763315661224,0.05693348,94432.0,94418.0,0.05212]
[1763315661444,0.02972139,94431.0,94420.0,0.0402]
[1763315661654,0.05693348,94432.0,94420.0,0.0402]
[1763315661655,0.02972139,94430.0,94420.0,0.0402]
[1763315661861,0.02972139,94429.0,94420.0,0.0402]
[1763315662075,0.02972139,94428.0,94420.0,0.0402]
[1763315662286,0.02972139,94427.0,94420.0,0.0402]
[1763315662495,0.02972139,94426.0,94420.0,0.0402]
[1763315662709,0.02972139,94425.0,94420.0,0.0402]
[1763315662968,0.02972139,94424.0,94403.0,0.0402]
[1763315663181,0.03838688,94423.0,94403.0,0.0402]
[1763315663397,0.05693348,94421.0,94403.0,0.0402]
[1763315663613,0.08665487,94420.0,94396.0,0.04341874]
[1763315663871,0.02972139,94419.0,94398.0,0.04341874]
[1763315664102,0.02972139,94418.0,94398.0,0.04341874]
[1763315664252,0.02972139,94417.0,94398.0,0.04341874]
[1763315664432,0.0758832,94431.0,94398.0,0.04341874]
[1763315664433,0.02972139,94416.0,94398.0,0.04341874]
[1763315664656,0.02972139,94415.0,94400.0,0.08575]
[1763315664819,0.02972139,94414.0,94401.0,0.04341874]
[1763315665025,0.0758832,94432.0,94367.0,0.0402]
[1763315665026,0.02972139,94413.0,94370.0,0.08575]
[1763315665247,0.25649487,94412.0,94370.0,0.08189109]
[1763315665462,0.02972139,94411.0,94379.0,0.0402]
[1763315665637,0.05693348,94406.0,94379.0,0.0402]
[1763315665842,0.05642195,94405.0,94379.0,0.0402]
[1763315666122,0.02972139,94404.0,94379.0,0.0402]
[1763315666327,0.02972139,94403.0,94379.0,0.0402]
[1763315666706,0.02972139,94402.0,94380.0,0.04341874]
[1763315666844,0.05693348,94407.0,94380.0,0.04341874]
[1763315666845,0.02972139,94401.0,94380.0,0.04341874]
[1763315667052,0.02972139,94400.0,94382.0,0.04341874]
[1763315667260,0.02972139,94399.0,94382.0,0.04341874]
[1763315667493,0.02972139,94398.0,94381.0,0.04341874]
[1763315667841,0.02972139,94397.0,94381.0,0.04341874]
[1763315667998,0.02972139,94396.0,94382.0,0.01693687]
[1763315668199,0.02972139,94395.0,94383.0,0.04341874]
[1763315668402,0.02972139,94394.0,94383.0,0.04341874]
[1763315668629,0.17029072,94412.0,94385.0,0.04341874]
[1763315668630,0.11468139,94393.0,94385.0,0.04341874]
[1763315668824,0.02972139,94392.0,94385.0,0.04341874]
[1763315669066,0.01981426,94391.0,94387.0,0.04341874]
[1763315669272,0.01981426,94390.0,94387.0,0.04341874]
[1763315669478,0.01981426,94389.0,94388.0,0.12916874]
[1763315669699,0.08496,94393.0,94389.0,0.04341874]
[1763315669889,0.00045072,94412.0,94397.0,0.05212]
[1763315670028,0.02972118,94411.0,94398.0,0.05212]
[1763315670229,0.02972118,94410.0,94398.0,0.05212]
[1763315670454,0.02972118,94409.0,94398.0,0.13787]
[1763315670648,0.00045072,94412.0,94398.0,0.13787]
[1763315670649,0.02972118,94408.0,94398.0,0.13787]
[1763315670855,0.02972118,94407.0,94399.0,0.08575]
[1763315671055,0.02972118,94406.0,94399.0,0.08575]
[1763315671279,0.02972118,94405.0,94399.0,0.08575]
[1763315671453,0.01981412,94404.0,94399.0,0.08575]
[1763315671662,0.00045072,94412.0,94399.0,0.08575]
[1763315671663,0.02972191,94403.0,94399.0,0.08575]
[1763315671862,0.00045072,94412.0,94399.0,0.08575]
[1763315671863,0.02972191,94402.0,94399.0,0.08575]
[1763315672229,0.00045072,94412.0,94400.0,0.04341874]
[1763315672230,0.02972191,94401.0,94400.0,0.04341874]
[1763315673452,0.02972191,94401.0,94400.0,0.04441874]
[1763315673746,0.02972191,94401.0,94400.0,0.001]
[1763315674607,0.02972191,94401.0,94349.0,0.0285231]
[1763315674608,0.21194778,94363.0,94349.0,0.0285231]
[1763315674785,0.01059434,94390.0,94339.0,0.03868]
[1763315674786,0.08680566,94362.0,94339.0,0.03868]
[1763315674970,0.08680566,94362.0,94300.0,0.00222624]
[1763315674971,0.00676,94340.0,94327.0,0.03868]
[1763315675156,0.02972622,94339.0,94327.0,0.03868]
[1763315675356,0.11468622,94338.0,94327.0,0.03868]
[1763315675562,0.02972622,94337.0,94329.0,0.04341874]
[1763315675934,0.08496,94338.0,94329.0,0.04355395]
[1763315675935,0.02972622,94336.0,94329.0,0.04355395]
[1763315676074,0.02972622,94335.0,94330.0,0.0831]
[1763315676272,0.02972622,94334.0,94330.0,0.0831]
[1763315676493,0.02972622,94333.0,94330.0,0.0831]
[1763315676696,0.02972622,94332.0,94330.0,0.09529152]
[1763315676896,0.02972622,94331.0,94330.0,0.13871026]
[1763315677102,0.01981796,94331.0,94330.0,0.13871026]
[1763315677312,0.01981796,94331.0,94330.0,0.05561026]
[1763315678110,0.01981796,94331.0,94330.0,0.05761026]
[1763315678353,0.01981796,94331.0,94330.0,0.05661026]
[1763315678552,0.01981796,94331.0,94330.0,0.04441874]
[1763315678778,0.03745768,94331.0,94330.0,0.04441874]
[1763315678934,0.03745768,94331.0,94330.0,0.04541874]
[1763315680178,0.05675387,94377.0,94339.0,0.09344]
[1763315680389,0.00984976,94376.0,94339.0,0.09344]
[1763315680588,0.00984976,94375.0,94340.0,0.009344]
[1763315680766,0.00984976,94374.0,94340.0,0.092444]
[1763315680989,0.00984976,94373.0,94340.0,0.092444]
[1763315681137,0.00984976,94372.0,94340.0,0.092444]
[1763315681332,0.00984976,94371.0,94340.0,0.092444]
[1763315681572,0.00984976,94370.0,94341.0,0.0131124]
[1763315681774,0.00984976,94369.0,94341.0,0.0962124]
[1763315682039,0.00984976,94368.0,94342.0,0.04341874]
[1763315682242,0.00984976,94367.0,94344.0,0.04341874]
[1763315682466,0.00984976,94366.0,94346.0,0.04341874]
[1763315682737,0.00984976,94365.0,94348.0,0.04341874]
[1763315683003,0.01772968,94368.0,94350.0,0.04341874]
[1763315683004,0.00984976,94364.0,94350.0,0.04341874]
[1763315683206,0.01772968,94368.0,94350.0,0.04341874]
[1763315683207,0.00984976,94363.0,94350.0,0.04341874]
[1763315683409,0.00984976,94362.0,94352.0,0.04341874]
[1763315683597,0.00984976,94361.0,94352.0,0.04341874]
[1763315683833,0.00984976,94360.0,94354.0,0.04341874]
[1763315683976,0.01772968,94368.0,94354.0,0.04341874]
[1763315683977,0.00984976,94359.0,94354.0,0.04341874]
[1763315684179,0.00984976,94358.0,94356.0,0.04341874]
[1763315684384,0.00984976,94357.0,94356.0,0.04341874]
[1763315685023,0.00984976,94357.0,94353.0,0.04341874]
[1763315685228,0.00984976,94356.0,94353.0,0.04341874]
[1763315685447,0.08496,94356.0,94355.0,0.04341874]
[1763315685609,0.09480647,94356.0,94355.0,0.04341874]
[1763315686245,0.09480619,94356.0,94355.0,0.05162861]
[1763315686405,0.09480619,94356.0,94355.0,0.04341874]
[1763315686608,0.08496,94356.0,94355.0,0.04341874]
[1763315688136,0.09480622,94356.0,94355.0,0.04441874]
[1763315688337,0.09480622,94356.0,94355.0,0.04541874]
[1763315689261,0.07183205,94397.0,94355.0,0.10017874]
[1763315689488,0.21187677,94395.0,94356.0,0.02219587]
[1763315689632,0.02942879,94396.0,94356.0,0.02219587]
[1763315690026,0.04709954,94396.0,94356.0,0.02219587]
[1763315690221,0.01767075,94396.0,94356.0,0.02219587]
[1763315690418,0.002,94397.0,94356.0,0.02219587]
[1763315690667,0.01865456,94397.0,94356.0,0.02219587]
[1763315690867,0.01865456,94397.0,94357.0,0.0831]
[1763315691084,0.001,94396.0,94357.0,0.0831]
[1763315691276,0.02315157,94395.0,94358.0,0.01439759]
[1763315691475,0.01765456,94397.0,94354.0,0.03868]
[1763315691677,0.001,94396.0,94354.0,0.03868]
[1763315692181,0.01970874,94395.0,94355.0,0.0831]
[1763315692387,0.01970874,94394.0,94355.0,0.0831]
[1763315692551,0.01970874,94393.0,94356.0,0.012178]
[1763315692747,0.01970874,94392.0,94356.0,0.012178]
[1763315693089,0.00045044,94395.0,94357.0,0.12651874]
[1763315693090,0.01970874,94391.0,94357.0,0.12651874]
[1763315693312,0.01970874,94390.0,94357.0,0.12651874]
[1763315693590,0.01970874,94389.0,94357.0,0.12651874]
[1763315693781,0.01970874,94388.0,94359.0,0.04341874]
[1763315693986,0.01970874,94387.0,94359.0,0.04341874]
[1763315694145,0.01970874,94386.0,94361.0,0.04341874]
[1763315694367,0.01970874,94385.0,94361.0,0.04341874]
[1763315694565,0.01970874,94384.0,94362.0,0.04341874]
[1763315694787,0.01970874,94383.0,94362.0,0.04341874]
[1763315694993,0.01970874,94382.0,94363.0,0.0831]
[1763315695168,0.01970874,94381.0,94363.0,0.0831]
[1763315695368,0.18970874,94380.0,94363.0,0.0831]
[1763315695576,0.01970874,94379.0,94363.0,0.0831]
[1763315695775,0.01970874,94378.0,94363.0,0.0831]
[1763315696024,0.01970874,94377.0,94363.0,0.0831]
[1763315696236,0.01970874,94376.0,94363.0,0.0831]
[1763315696364,0.01970874,94375.0,94363.0,0.0831]
[1763315696566,0.18897087,94380.0,94363.0,0.0831]
[1763315696567,0.01970874,94374.0,94363.0,0.0831]
[1763315696880,0.01970874,94373.0,94363.0,0.09575187]
[1763315697065,0.01970874,94372.0,94363.0,0.09575187]
[1763315697264,0.01970874,94371.0,94363.0,0.09575187]
[1763315697516,0.01970874,94370.0,94363.0,0.0831]
[1763315697712,0.01970874,94369.0,94363.0,0.0831]
[1763315697879,0.01970874,94368.0,94363.0,0.0831]
[1763315698080,0.01970874,94367.0,94363.0,0.0831]
[1763315698277,0.01970874,94366.0,94355.0,0.04341874]
[1763315698519,0.01970874,94365.0,94357.0,0.04341874]
[1763315698698,0.01970874,94364.0,94358.0,0.0831]
[1763315699023,0.01970874,94363.0,94358.0,0.0831]
[1763315699204,0.01970874,94362.0,94358.0,0.0831]
[1763315699408,0.01970874,94361.0,94358.0,0.08323521]
[1763315699577,0.01970874,94360.0,94358.0,0.08323521]
[1763315699777,0.01970874,94359.0,94358.0,0.08323521]
[1763315700218,0.01970874,94359.0,94358.0,0.08423521]
[1763315700426,0.01970874,94359.0,94358.0,0.08323521]
[1763315700606,0.01970874,94359.0,94358.0,0.00013521]
[1763315700812,0.01970874,94359.0,94358.0,0.00113521]
[1763315701112,0.01970874,94359.0,94358.0,0.00013521]
[1763315701328,0.03723773,94359.0,94317.0,0.0831]
[1763315701529,0.03723773,94359.0,94310.0,0.0004]
[1763315701530,0.03723773,94359.0,94327.0,0.00013507]
[1763315701531,0.05687201,94349.0,94327.0,0.00013507]
[1763315701750,0.05687201,94338.0,94327.0,0.00013507]
[1763315701964,0.05687201,94331.0,94327.0,0.00013507]
[1763315702179,0.05687201,94329.0,94327.0,0.00013507]
[1763315702401,0.02957967,94328.0,94327.0,0.00013507]
[1763315703994,0.08643236,94328.0,94327.0,0.00013507]
[1763315704204,0.02957967,94328.0,94327.0,0.00013507]
[1763315704527,0.03057967,94328.0,94327.0,0.00013507]
[1763315705364,0.20057967,94328.0,94327.0,0.00013507]
[1763315705891,0.22632291,94328.0,94327.0,0.00013507]
[1763315706093,0.25743236,94328.0,94327.0,0.00013507]
[1763315706301,0.11557967,94328.0,94327.0,0.00013507]
[1763315706502,0.03057967,94328.0,94327.0,0.00013507]
[1763315706725,0.03057967,94328.0,94310.0,0.0004]
[1763315706926,0.05683337,94321.0,94310.0,0.0004]
[1763315707164,0.02957967,94320.0,94300.0,0.00222624]
[1763315707505,0.02957967,94319.0,94300.0,0.00222624]
[1763315707697,0.02957967,94318.0,94300.0,0.00222624]
[1763315707905,0.02957967,94317.0,94300.0,0.00222624]
[1763315708260,0.21203368,94325.0,94300.0,0.00222624]
[1763315708261,0.09505434,94316.0,94300.0,0.00222624]
[1763315708464,0.05683337,94312.0,94300.0,0.00222624]
[1763315708681,0.2,94310.0,94300.0,0.00222624]
[1763315708903,0.05683337,94308.0,94300.0,0.00222624]
[1763315709157,0.02957967,94307.0,94300.0,0.00222624]
[1763315709384,0.02957967,94306.0,94300.0,0.00222624]
[1763315709627,0.02957967,94305.0,94300.0,0.00222624]
[1763315709832,0.05683337,94310.0,94300.0,0.00222624]
[1763315709833,0.02957967,94304.0,94300.0,0.00222624]
[1763315710081,0.02957967,94303.0,94300.0,0.00222624]
[1763315710306,0.02957967,94302.0,94300.0,0.00222624]
[1763315710516,0.02957967,94301.0,94300.0,0.00222624]
[1763315711280,0.02957967,94301.0,94290.0,0.98946199]
[1763315711447,0.02957967,94300.0,94290.0,0.98959684]
[1763315711826,0.02957967,94299.0,94290.0,0.98959684]
[1763315711996,0.02957967,94298.0,94290.0,0.98959684]
[1763315712200,0.02957967,94297.0,94290.0,0.98959684]
[1763315712441,0.02957967,94296.0,94290.0,0.98959684]
[1763315712658,0.02957967,94295.0,94290.0,0.00013485]
[1763315712871,0.02957967,94295.0,94277.0,0.00042]
[1763315712872,0.02957967,94294.0,94280.0,0.49553485]
[1763315713041,0.02957967,94293.0,94280.0,0.49553485]
[1763315713246,0.02957967,94292.0,94280.0,0.48758972]
[1763315713467,0.02957967,94291.0,94280.0,0.48758972]
[1763315713632,0.02957967,94290.0,94280.0,0.48758972]
[1763315713846,0.00013497,94293.0,94280.0,0.48758972]
[1763315713847,0.02957967,94289.0,94280.0,0.48758972]
[1763315714103,0.00013497,94293.0,94280.0,0.48758972]
[1763315714104,0.02957967,94288.0,94280.0,0.48758972]
[1763315714312,0.02957967,94287.0,94280.0,0.48758972]
[1763315714513,0.00013497,94293.0,94280.0,0.48758972]
[1763315714514,0.02957967,94286.0,94280.0,0.48758972]
[1763315714717,0.02957967,94285.0,94280.0,0.48758972]
[1763315714917,0.02957967,94284.0,94280.0,0.48758972]
[1763315715091,0.02957967,94283.0,94280.0,0.48758972]
[1763315715322,0.19965967,94282.0,94280.0,0.48758972]
[1763315715524,0.02957967,94281.0,94280.0,0.48758972]
[1763315716222,0.02957967,94281.0,94280.0,0.48067507]
[1763315716449,0.04964564,94281.0,94280.0,0.45567507]
[1763315716611,0.02957967,94281.0,94280.0,0.45567507]
[1763315717163,0.02957967,94281.0,94280.0,0.42841604]
[1763315717365,0.02957967,94281.0,94280.0,0.41514337]
[1763315718071,0.03057967,94281.0,94280.0,0.41514337]
[1763315718491,0.02957967,94281.0,94280.0,0.41514337]
[1763315718689,0.03057967,94281.0,94280.0,0.41514337]
[1763315719124,0.05484985,94281.0,94280.0,0.41514337]
[1763315719317,0.03057967,94281.0,94280.0,0.41514337]
[1763315719858,0.03157967,94281.0,94280.0,0.41514337]
[1763315721145,5.03157967,94281.0,94265.0,64.61459244]
[1763315721354,0.21215856,94270.0,94265.0,64.14010244]
[1763315721541,5.0,94267.0,94265.0,64.02498151]
[1763315721748,5.52957967,94266.0,94265.0,64.014605]
[1763315721961,5.02957967,94266.0,94265.0,64.014605]
[1763315722275,5.07299841,94266.0,94265.0,64.014605]
[1763315722602,5.02957967,94266.0,94265.0,64.014605]
[1763315723442,5.28704652,94266.0,94265.0,63.93502327]
[1763315723648,5.33046526,94266.0,94265.0,63.91593913]
[1763315723891,0.29104652,94266.0,94265.0,63.91593913]
[1763315724466,0.28904652,94266.0,94265.0,63.91593913]
[1763315724983,0.28704652,94266.0,94265.0,63.91593913]
[1763315725403,0.37312652,94266.0,94265.0,63.91593913]
[1763315725868,0.37612652,94266.0,94265.0,63.91593913]
[1763315726074,0.29104652,94266.0,94265.0,63.91593913]
[1763315726243,0.28804652,94266.0,94265.0,63.91593913]
[1763315726772,0.28704652,94266.0,94265.0,63.91593913]
[1763315727341,0.28904652,94266.0,94265.0,63.91593913]
[1763315727554,0.29104652,94266.0,94265.0,63.91593913]
[1763315727887,0.28904652,94266.0,94265.0,63.91593913]
[1763315728092,0.29004652,94266.0,94265.0,63.91593913]
[1763315728449,0.28904652,94266.0,94265.0,63.91593913]
[1763315728800,0.28704652,94266.0,94265.0,63.98981913]
[1763315729017,0.28904652,94266.0,94265.0,63.91593913]
[1763315729808,0.28704652,94266.0,94265.0,63.91593913]
[1763315730276,0.28804652,94266.0,94265.0,63.91593913]
[1763315730789,0.28704652,94266.0,94265.0,63.91593913]
[1763315732054,0.28704652,94266.0,94265.0,63.90317171]
[1763315732388,0.28704652,94266.0,94265.0,63.90359056]
[1763315732540,0.28804652,94266.0,94265.0,63.90359056]